[Event "FIDE World Rapid Chess Championship 2021"]
[White "Carlsson, Pontus"]
[Black "Thybo, Jesper Sondergaard"]
[WhiteFideId "1705814"]
[BlackFideId "1438832"]
[WhiteElo "2436"]
[BlackElo "2401"]
[Result "0-1"]
[Round "11"]
[TimeControl "900+10"]
[Date "2021.12.28"]
[WhiteClock "0:01:19"]
[BlackClock "0:02:50"]

1. e4 {[%clk 0:15:00]}  c5 {[%clk 0:15:00]} 2. Nf3 {[%clk 0:15:00]}  d6 {[%clk 0:15:00]} 3. Bb5+ {[%clk 0:15:00]}  Nd7 {[%clk 0:15:00]} 4. d4 {[%clk 0:15:00]}  cxd4 {[%clk 0:15:00]} 5. Qxd4 {[%clk 0:15:00]}  a6 {[%clk 0:15:00]} 6. Bxd7+ {[%clk 0:15:00]}  Bxd7 {[%clk 0:15:00]} 7. Nc3 {[%clk 0:15:00]}  e6 {[%clk 0:15:18]} 8. Bg5 {[%clk 0:16:03]}  f6 {[%clk 0:15:18]} 9. Be3 {[%clk 0:16:03]}  Ne7 {[%clk 0:15:18]} 10. O-O-O {[%clk 0:16:03]}  Nc6 {[%clk 0:15:18]} 11. Qb6 {[%clk 0:16:03]}  Qxb6 {[%clk 0:15:06]} 12. Bxb6 {[%clk 0:10:54]}  Rc8 {[%clk 0:15:06]} 13. Nd2 {[%clk 0:10:54]}  Ne5 {[%clk 0:14:35]} 14. f4 {[%clk 0:11:01]}  Nc4 {[%clk 0:14:35]} 15. Nxc4 {[%clk 0:11:01]}  Rxc4 {[%clk 0:14:35]} 16. Rhe1 {[%clk 0:10:45]}  Be7 {[%clk 0:12:21]} 17. Rd3 {[%clk 0:07:43]}  Kf7 {[%clk 0:11:57]} 18. f5 {[%clk 0:04:40]}  exf5 {[%clk 0:10:12]} 19. exf5 {[%clk 0:04:16]}  Bxf5 {[%clk 0:10:12]} 20. Rde3 {[%clk 0:04:16]}  Bf8 {[%clk 0:10:12]} 21. R1e2 {[%clk 0:04:28]}  d5 {[%clk 0:06:52]} 22. Nxd5 {[%clk 0:04:21]}  Bd6 {[%clk 0:06:52]} 23. h3 {[%clk 0:04:26]}  h5 {[%clk 0:03:49]} 24. b3 {[%clk 0:04:26]}  Rc6 {[%clk 0:03:49]} 25. c4 {[%clk 0:04:26]}  Be6 {[%clk 0:02:50]} 26. Bc7 {[%clk 0:01:19]}  Ba3+ {[%clk 0:02:50]} 0-1


[Site "http://www.Chess.com"]

[Event "FIDE World Rapid Chess Championship 2021"]
[White "Krasenkow, Michal"]
[Black "Kanarek, Marcel"]
[WhiteFideId "1113100"]
[BlackFideId "1126822"]
[WhiteElo "2430"]
[BlackElo "2296"]
[Result "0-1"]
[Round "11"]
[TimeControl "900+10"]
[Date "2021.12.28"]
[WhiteClock "0:05:51"]
[BlackClock "0:00:19"]

1. c4 {[%clk 0:15:00]}  c6 {[%clk 0:15:00]} 2. Nf3 {[%clk 0:15:00]}  Nf6 {[%clk 0:15:00]} 3. Nc3 {[%clk 0:15:00]}  d5 {[%clk 0:15:00]} 4. e3 {[%clk 0:15:00]}  e6 {[%clk 0:15:04]} 5. b3 {[%clk 0:15:50]}  Bd6 {[%clk 0:15:04]} 6. Bb2 {[%clk 0:15:50]}  O-O {[%clk 0:15:04]} 7. Qc2 {[%clk 0:15:50]}  Nbd7 {[%clk 0:15:04]} 8. O-O-O {[%clk 0:15:50]}  e5 {[%clk 0:15:04]} 9. cxd5 {[%clk 0:15:17]}  cxd5 {[%clk 0:12:53]} 10. Nb5 {[%clk 0:15:17]}  Bb8 {[%clk 0:12:53]} 11. Ba3 {[%clk 0:15:17]}  Re8 {[%clk 0:12:53]} 12. Kb1 {[%clk 0:15:30]}  Re6 {[%clk 0:10:40]} 13. Rc1 {[%clk 0:14:04]}  Rc6 {[%clk 0:10:40]} 14. Qb2 {[%clk 0:14:04]}  Rxc1+ {[%clk 0:10:40]} 15. Kxc1 {[%clk 0:14:04]}  a6 {[%clk 0:07:40]} 16. Nd6 {[%clk 0:13:57]}  Ne4 {[%clk 0:07:40]} 17. Nxe4 {[%clk 0:13:57]}  dxe4 {[%clk 0:07:40]} 18. Ne1 {[%clk 0:13:57]}  b5 {[%clk 0:07:40]} 19. d3 {[%clk 0:13:53]}  a5 {[%clk 0:06:17]} 20. Qe2 {[%clk 0:13:00]}  b4 {[%clk 0:05:12]} 21. Bb2 {[%clk 0:13:00]}  Ba6 {[%clk 0:05:12]} 22. Qg4 {[%clk 0:13:00]}  Nf6 {[%clk 0:05:12]} 23. Qd1 {[%clk 0:10:39]}  Ra7 {[%clk 0:04:44]} 24. d4 {[%clk 0:10:39]}  Bxf1 {[%clk 0:04:10]} 25. Rxf1 {[%clk 0:08:59]}  Nd5 {[%clk 0:04:10]} 26. dxe5 {[%clk 0:08:59]}  Rd7 {[%clk 0:04:10]} 27. Qg4 {[%clk 0:08:28]}  Nc3 {[%clk 0:01:43]} 28. Bxc3 {[%clk 0:08:28]}  h5 {[%clk 0:01:43]} 29. Qxh5 {[%clk 0:08:07]}  bxc3 {[%clk 0:00:10]} 30. Nc2 {[%clk 0:08:07]}  Rd2 {[%clk 0:00:10]} 31. Rd1 {[%clk 0:08:07]}  Qd3 {[%clk 0:00:10]} 32. Ne1 {[%clk 0:08:07]}  Qd5 {[%clk 0:00:10]} 33. Nc2 {[%clk 0:05:51]}  Bxe5 {[%clk 0:00:19]} 34. Nd4 {[%clk 0:05:51]}  Bd6 {[%clk 0:00:19]} 0-1


[Site "http://www.Chess.com"]

[Event "FIDE World Rapid Chess Championship 2021"]
[White "Tang, Andrew"]
[Black "Petrovskyi, Vadym"]
[WhiteFideId "2059630"]
[BlackFideId "14165210"]
[WhiteElo "2427"]
[BlackElo "2282"]
[Result "0-1"]
[Round "11"]
[TimeControl "900+10"]
[Date "2021.12.28"]
[WhiteClock "0:00:26"]
[BlackClock "0:01:30"]

1. d4 {[%clk 0:15:00]}  Nf6 {[%clk 0:15:00]} 2. c4 {[%clk 0:15:00]}  e6 {[%clk 0:15:00]} 3. Nc3 {[%clk 0:15:00]}  Bb4 {[%clk 0:15:00]} 4. Qc2 {[%clk 0:15:00]}  d5 {[%clk 0:15:00]} 5. cxd5 {[%clk 0:15:00]}  exd5 {[%clk 0:15:00]} 6. Bg5 {[%clk 0:15:00]}  h6 {[%clk 0:15:00]} 7. Bh4 {[%clk 0:15:00]}  c6 {[%clk 0:15:00]} 8. e3 {[%clk 0:15:00]}  O-O {[%clk 0:15:00]} 9. Bd3 {[%clk 0:15:00]}  Re8 {[%clk 0:15:58]} 10. Ne2 {[%clk 0:16:40]}  Nbd7 {[%clk 0:15:58]} 11. O-O {[%clk 0:16:40]}  Bd6 {[%clk 0:15:58]} 12. h3 {[%clk 0:16:40]}  a6 {[%clk 0:15:58]} 13. Rad1 {[%clk 0:16:40]}  Nf8 {[%clk 0:15:58]} 14. Bg3 {[%clk 0:16:40]}  Bxg3 {[%clk 0:15:58]} 15. Nxg3 {[%clk 0:16:40]}  Ne6 {[%clk 0:15:58]} 16. Rfe1 {[%clk 0:16:40]}  Ng5 {[%clk 0:15:58]} 17. h4 {[%clk 0:16:40]}  Nge4 {[%clk 0:15:58]} 18. Ngxe4 {[%clk 0:16:40]}  Nxe4 {[%clk 0:15:58]} 19. Nxe4 {[%clk 0:16:40]}  dxe4 {[%clk 0:15:58]} 20. Bxe4 {[%clk 0:16:40]}  Qxh4 {[%clk 0:15:58]} 21. Bf3 {[%clk 0:15:35]}  Bg4 {[%clk 0:16:30]} 22. Bxg4 {[%clk 0:15:35]}  Qxg4 {[%clk 0:16:30]} 23. Rd3 {[%clk 0:15:35]}  Rad8 {[%clk 0:16:30]} 24. Rb3 {[%clk 0:15:35]}  Re7 {[%clk 0:16:30]} 25. Qd1 {[%clk 0:14:32]}  Qe4 {[%clk 0:16:03]} 26. Rd3 {[%clk 0:14:32]}  Rd5 {[%clk 0:15:57]} 27. Rd2 {[%clk 0:12:11]}  Re6 {[%clk 0:15:57]} 28. Qf3 {[%clk 0:12:13]}  Qxf3 {[%clk 0:14:40]} 29. gxf3 {[%clk 0:08:59]}  Rf5 {[%clk 0:14:40]} 30. d5 {[%clk 0:09:07]}  cxd5 {[%clk 0:11:26]} 31. f4 {[%clk 0:06:12]}  Rxf4 {[%clk 0:11:13]} 32. Rxd5 {[%clk 0:06:13]}  Rg4+ {[%clk 0:06:00]} 33. Kf1 {[%clk 0:06:24]}  g6 {[%clk 0:06:00]} 34. Rc1 {[%clk 0:06:24]}  h5 {[%clk 0:06:00]} 35. Rc8+ {[%clk 0:06:24]}  Kg7 {[%clk 0:06:00]} 36. Rdd8 {[%clk 0:06:24]}  Ra4 {[%clk 0:06:00]} 37. Rg8+ {[%clk 0:06:05]}  Kf6 {[%clk 0:04:38]} 38. a3 {[%clk 0:06:05]}  Re7 {[%clk 0:04:38]} 39. Kg2 {[%clk 0:06:05]}  Rd7 {[%clk 0:04:38]} 40. Kg3 {[%clk 0:06:05]}  Rg4+ {[%clk 0:04:05]} 41. Kf3 {[%clk 0:04:48]}  Rd5 {[%clk 0:04:05]} 42. Ke2 {[%clk 0:04:48]}  Rf5 {[%clk 0:04:05]} 43. Kf1 {[%clk 0:04:48]}  Rg3 {[%clk 0:04:09]} 44. Rge8 {[%clk 0:03:30]}  Rgf3 {[%clk 0:04:09]} 45. Rc2 {[%clk 0:03:30]}  Rh3 {[%clk 0:04:09]} 46. Kg2 {[%clk 0:03:30]}  Rh4 {[%clk 0:04:09]} 47. Rb8 {[%clk 0:03:05]}  Rg4+ {[%clk 0:02:46]} 48. Kf1 {[%clk 0:03:05]}  h4 {[%clk 0:02:46]} 49. Rh8 {[%clk 0:03:05]}  Kg7 {[%clk 0:02:46]} 50. Rcc8 {[%clk 0:03:05]}  Re4 {[%clk 0:02:46]} 51. Ke2 {[%clk 0:01:06]}  Rg4 {[%clk 0:02:06]} 52. Kf1 {[%clk 0:01:06]}  a5 {[%clk 0:02:06]} 53. Rcg8+ {[%clk 0:01:06]}  Kf6 {[%clk 0:02:06]} 54. Rh7 {[%clk 0:01:06]}  a4 {[%clk 0:02:06]} 55. Rgh8 {[%clk 0:01:06]}  g5 {[%clk 0:02:06]} 56. Rh6+ {[%clk 0:01:06]}  Ke7 {[%clk 0:01:36]} 57. Rb6 {[%clk 0:00:24]}  Re4 {[%clk 0:01:36]} 58. Rxb7+ {[%clk 0:00:24]}  Kf6 {[%clk 0:01:36]} 59. Ke2 {[%clk 0:00:24]}  Ree5 {[%clk 0:01:36]} 60. Rb6+ {[%clk 0:00:24]}  Kg7 {[%clk 0:01:36]} 61. Rbb8 {[%clk 0:00:24]}  Rb5 {[%clk 0:01:36]} 62. Rhg8+ {[%clk 0:00:24]}  Kf6 {[%clk 0:01:36]} 63. e4 {[%clk 0:00:24]}  Rxb8 {[%clk 0:01:36]} 64. Rxb8 {[%clk 0:00:24]}  Rf4 {[%clk 0:01:36]} 65. f3 {[%clk 0:00:26]}  h3 {[%clk 0:01:30]} 66. Kf2 {[%clk 0:00:26]}  g4 {[%clk 0:01:30]} 67. Kg3 {[%clk 0:00:26]}  gxf3 {[%clk 0:01:30]} 68. e5+ {[%clk 0:00:26]}  Kg7 {[%clk 0:01:30]} 0-1


[Site "http://www.Chess.com"]

[Event "FIDE World Rapid Chess Championship 2021"]
[White "Aziz, Husain"]
[Black "Nasuta, Grzegorz"]
[WhiteFideId "12100293"]
[BlackFideId "1141686"]
[WhiteElo "2430"]
[BlackElo "2345"]
[Result "0-1"]
[Round "11"]
[TimeControl "900+10"]
[Date "2021.12.28"]
[WhiteClock "0:14:08"]
[BlackClock "0:13:17"]

1. e4 {[%clk 0:14:46]}  e5 {[%clk 0:15:20]} 2. Nf3 {[%clk 0:14:46]}  Nc6 {[%clk 0:15:20]} 3. Nc3 {[%clk 0:14:46]}  Nf6 {[%clk 0:15:20]} 4. d4 {[%clk 0:14:46]}  exd4 {[%clk 0:15:20]} 5. Nxd4 {[%clk 0:14:46]}  Bb4 {[%clk 0:15:20]} 6. Nxc6 {[%clk 0:14:46]}  bxc6 {[%clk 0:15:20]} 7. Bd3 {[%clk 0:14:46]}  d5 {[%clk 0:15:20]} 8. Bd2 {[%clk 0:14:46]}  O-O {[%clk 0:15:20]} 9. O-O {[%clk 0:14:46]}  Re8 {[%clk 0:13:57]} 10. Re1 {[%clk 0:15:18]}  Bg4 {[%clk 0:13:57]} 11. Qc1 {[%clk 0:15:18]}  dxe4 {[%clk 0:13:17]} 12. Nxe4 {[%clk 0:14:08]}  Rxe4 {[%clk 0:13:17]} 0-1


[Site "http://www.Chess.com"]

[Event "FIDE World Rapid Chess Championship 2021"]
[White "Peng, Li Min"]
[Black "Aditya, Mittal"]
[WhiteFideId "14112620"]
[BlackFideId "35042025"]
[WhiteElo "2411"]
[BlackElo "1488"]
[Result "1/2-1/2"]
[Round "11"]
[TimeControl "900+10"]
[Date "2021.12.28"]
[WhiteClock "0:03:22"]
[BlackClock "0:01:35"]

1. d4 {[%clk 0:15:00]}  Nf6 {[%clk 0:15:00]} 2. c4 {[%clk 0:15:00]}  e6 {[%clk 0:15:00]} 3. Nc3 {[%clk 0:15:00]}  Bb4 {[%clk 0:15:00]} 4. e3 {[%clk 0:15:00]}  O-O {[%clk 0:15:00]} 5. Bd2 {[%clk 0:15:00]}  d5 {[%clk 0:15:00]} 6. Nf3 {[%clk 0:15:00]}  b6 {[%clk 0:15:00]} 7. cxd5 {[%clk 0:15:00]}  exd5 {[%clk 0:15:00]} 8. Bd3 {[%clk 0:15:00]}  Bd6 {[%clk 0:15:00]} 9. O-O {[%clk 0:16:17]}  c5 {[%clk 0:15:00]} 10. dxc5 {[%clk 0:16:17]}  bxc5 {[%clk 0:15:00]} 11. e4 {[%clk 0:16:17]}  dxe4 {[%clk 0:14:35]} 12. Nxe4 {[%clk 0:16:23]}  Bb7 {[%clk 0:14:35]} 13. Bg5 {[%clk 0:16:19]}  Bxe4 {[%clk 0:10:47]} 14. Bxf6 {[%clk 0:10:28]}  Bxh2+ {[%clk 0:09:34]} 15. Nxh2 {[%clk 0:10:35]}  Qxd3 {[%clk 0:07:09]} 16. Qg4 {[%clk 0:10:35]}  Bg6 {[%clk 0:07:09]} 17. Be7 {[%clk 0:10:35]}  Re8 {[%clk 0:07:09]} 18. Bxc5 {[%clk 0:10:35]}  Nc6 {[%clk 0:07:09]} 19. Nf3 {[%clk 0:06:30]}  Re4 {[%clk 0:07:06]} 20. Qg3 {[%clk 0:06:30]}  Rae8 {[%clk 0:07:06]} 21. Qd6 {[%clk 0:06:30]}  Qxd6 {[%clk 0:06:15]} 22. Bxd6 {[%clk 0:05:43]}  Bh5 {[%clk 0:06:15]} 23. Rac1 {[%clk 0:05:43]}  Na5 {[%clk 0:03:20]} 24. Rc5 {[%clk 0:05:49]}  Bxf3 {[%clk 0:03:20]} 25. Rxa5 {[%clk 0:05:49]}  Be2 {[%clk 0:03:19]} 26. Re1 {[%clk 0:04:46]}  a6 {[%clk 0:03:19]} 27. f3 {[%clk 0:04:54]}  R4e6 {[%clk 0:01:47]} 28. Kf2 {[%clk 0:04:54]}  g6 {[%clk 0:01:47]} 29. Re5 {[%clk 0:01:58]}  Rxe5 {[%clk 0:00:37]} 30. Bxe5 {[%clk 0:01:58]}  Bb5 {[%clk 0:00:37]} 31. f4 {[%clk 0:01:58]}  f6 {[%clk 0:00:37]} 32. Bxf6 {[%clk 0:01:58]}  Rxe1 {[%clk 0:00:37]} 33. Kxe1 {[%clk 0:01:58]}  Kf7 {[%clk 0:00:37]} 34. Bh4 {[%clk 0:01:58]}  Ke6 {[%clk 0:00:37]} 35. Kf2 {[%clk 0:01:58]}  Kf5 {[%clk 0:00:37]} 36. Ke3 {[%clk 0:01:58]}  Kg4 {[%clk 0:00:37]} 37. Be1 {[%clk 0:01:58]}  Bf1 {[%clk 0:00:04]} 38. g3 {[%clk 0:01:53]}  Kf5 {[%clk 0:00:04]} 39. Kd4 {[%clk 0:01:53]}  Ke6 {[%clk 0:00:04]} 40. Kc5 {[%clk 0:01:53]}  Kd7 {[%clk 0:00:04]} 41. g4 {[%clk 0:01:53]}  Be2 {[%clk 0:00:04]} 42. g5 {[%clk 0:01:53]}  Kc7 {[%clk 0:00:04]} 43. Kd5 {[%clk 0:01:53]}  Bd3 {[%clk 0:00:04]} 44. Ke5 {[%clk 0:01:53]}  Bb1 {[%clk 0:00:04]} 45. a3 {[%clk 0:01:53]}  Bc2 {[%clk 0:00:04]} 46. Kf6 {[%clk 0:01:53]}  Kb7 {[%clk 0:00:04]} 47. Kg7 {[%clk 0:01:53]}  Bf5 {[%clk 0:00:04]} 48. Kxh7 {[%clk 0:01:53]}  Bc2 {[%clk 0:00:04]} 49. Kg7 {[%clk 0:01:53]}  Bf5 {[%clk 0:00:04]} 50. Kf6 {[%clk 0:01:53]}  Bc2 {[%clk 0:00:04]} 51. Ke5 {[%clk 0:01:53]}  Bf5 {[%clk 0:00:04]} 52. Kd6 {[%clk 0:01:53]}  Bc2 {[%clk 0:00:04]} 53. Bf2 {[%clk 0:01:53]}  Bf5 {[%clk 0:00:04]} 54. Kc5 {[%clk 0:01:53]}  Bc2 {[%clk 0:00:04]} 55. Kb4 {[%clk 0:03:22]}  Bf5 {[%clk 0:01:35]} 56. Ka5 {[%clk 0:03:22]}  Bc2 {[%clk 0:01:35]} 57. a4 {[%clk 0:03:22]}  Bf5 {[%clk 0:01:35]} 58. b4 {[%clk 0:03:22]}  Bc2 {[%clk 0:01:35]} 59. b5 {[%clk 0:03:22]}  axb5 {[%clk 0:01:35]} 60. Kxb5 {[%clk 0:03:22]}  Bf5 {[%clk 0:01:35]} 61. a5 {[%clk 0:03:22]}  Ka8 {[%clk 0:01:35]} 62. Kb6 {[%clk 0:03:22]}  Be4 {[%clk 0:01:35]} 1/2-1/2


[Site "http://www.Chess.com"]

[Event "FIDE World Rapid Chess Championship 2021"]
[White "Kolosowski, Mateusz"]
[Black "Baum, Jonasz"]
[WhiteFideId "1129708"]
[BlackFideId "1195360"]
[WhiteElo "2371"]
[BlackElo "2343"]
[Result "1/2-1/2"]
[Round "11"]
[TimeControl "900+10"]
[Date "2021.12.28"]
[WhiteClock "0:00:55"]
[BlackClock "0:00:12"]

1. e4 {[%clk 0:15:00]}  c5 {[%clk 0:15:00]} 2. Nc3 {[%clk 0:15:00]}  a6 {[%clk 0:15:00]} 3. g3 {[%clk 0:15:00]}  b5 {[%clk 0:15:00]} 4. Bg2 {[%clk 0:15:00]}  Bb7 {[%clk 0:15:00]} 5. Nge2 {[%clk 0:15:00]}  e6 {[%clk 0:15:00]} 6. d4 {[%clk 0:15:00]}  cxd4 {[%clk 0:15:00]} 7. Nxd4 {[%clk 0:15:00]}  Nf6 {[%clk 0:14:17]} 8. Qe2 {[%clk 0:16:19]}  Bc5 {[%clk 0:14:17]} 9. Nb3 {[%clk 0:16:19]}  Bb4 {[%clk 0:12:52]} 10. O-O {[%clk 0:15:16]}  O-O {[%clk 0:12:52]} 11. a4 {[%clk 0:15:05]}  Bxc3 {[%clk 0:09:30]} 12. bxc3 {[%clk 0:10:22]}  bxa4 {[%clk 0:09:30]} 13. Rxa4 {[%clk 0:10:03]}  d5 {[%clk 0:07:25]} 14. Na5 {[%clk 0:10:03]}  Qd7 {[%clk 0:04:41]} 15. Rb4 {[%clk 0:10:03]}  Bc6 {[%clk 0:04:41]} 16. e5 {[%clk 0:05:12]}  Ne4 {[%clk 0:06:22]} 17. c4 {[%clk 0:03:08]}  Qc7 {[%clk 0:03:46]} 18. cxd5 {[%clk 0:03:17]}  exd5 {[%clk 0:03:46]} 19. Nb3 {[%clk 0:03:17]}  a5 {[%clk 0:03:28]} 20. Rd4 {[%clk 0:01:04]}  a4 {[%clk 0:03:28]} 21. Nd2 {[%clk 0:01:04]}  Qxe5 {[%clk 0:03:28]} 22. Bb2 {[%clk 0:01:04]}  Nd7 {[%clk 0:01:30]} 23. Ba1 {[%clk 0:01:10]}  Qf5 {[%clk 0:01:30]} 24. f3 {[%clk 0:01:10]}  Nd6 {[%clk 0:01:30]} 25. Rg4 {[%clk 0:01:10]}  Nf6 {[%clk 0:01:30]} 26. Rf4 {[%clk 0:00:38]}  Qe6 {[%clk 0:00:01]} 27. Qf2 {[%clk 0:00:38]}  Rfe8 {[%clk 0:00:01]} 28. Qc5 {[%clk 0:00:38]}  Qe3+ {[%clk 0:00:01]} 29. Qxe3 {[%clk 0:00:38]}  Rxe3 {[%clk 0:00:01]} 30. Bxf6 {[%clk 0:00:38]}  gxf6 {[%clk 0:00:01]} 31. Rxf6 {[%clk 0:00:38]}  Re6 {[%clk 0:00:01]} 32. Rxe6 {[%clk 0:00:38]}  fxe6 {[%clk 0:00:01]} 33. Ra1 {[%clk 0:00:38]}  Nb5 {[%clk 0:00:01]} 34. c4 {[%clk 0:00:38]}  dxc4 {[%clk 0:00:01]} 35. Nxc4 {[%clk 0:00:38]}  a3 {[%clk 0:00:12]} 36. Bh3 {[%clk 0:01:05]}  Nd4 {[%clk 0:00:12]} 37. Rxa3 {[%clk 0:00:55]}  Rxa3 {[%clk 0:00:12]} 38. Nxa3 {[%clk 0:00:55]}  Nxf3+ {[%clk 0:00:12]} 1/2-1/2


[Site "http://www.Chess.com"]

[Event "FIDE World Rapid Chess Championship 2021"]
[White "Lopusiewicz, Piotr"]
[Black "Kuzmicz, Krystian"]
[WhiteFideId "1116029"]
[BlackFideId "1119125"]
[WhiteElo "2197"]
[BlackElo "2314"]
[Result "0-1"]
[Round "11"]
[TimeControl "900+10"]
[Date "2021.12.28"]
[WhiteClock "0:02:32"]
[BlackClock "0:06:18"]

1. d4 {[%clk 0:15:00]}  g6 {[%clk 0:15:00]} 2. e4 {[%clk 0:15:00]}  Bg7 {[%clk 0:15:00]} 3. Nf3 {[%clk 0:15:00]}  c6 {[%clk 0:15:00]} 4. c4 {[%clk 0:15:00]}  d5 {[%clk 0:15:00]} 5. e5 {[%clk 0:15:00]}  Bg4 {[%clk 0:15:34]} 6. Nbd2 {[%clk 0:14:49]}  e6 {[%clk 0:15:34]} 7. h3 {[%clk 0:14:49]}  Bxf3 {[%clk 0:15:34]} 8. Nxf3 {[%clk 0:14:49]}  Ne7 {[%clk 0:15:34]} 9. Bd3 {[%clk 0:14:24]}  Nd7 {[%clk 0:11:33]} 10. O-O {[%clk 0:14:24]}  c5 {[%clk 0:11:33]} 11. cxd5 {[%clk 0:14:24]}  Nxd5 {[%clk 0:11:33]} 12. Bg5 {[%clk 0:14:24]}  Qa5 {[%clk 0:10:25]} 13. Bd2 {[%clk 0:13:14]}  Qd8 {[%clk 0:09:49]} 14. Qb3 {[%clk 0:12:24]}  O-O {[%clk 0:07:57]} 15. Qxb7 {[%clk 0:12:24]}  cxd4 {[%clk 0:07:57]} 16. Bg5 {[%clk 0:08:13]}  Qc8 {[%clk 0:07:16]} 17. Qxc8 {[%clk 0:05:47]}  Rfxc8 {[%clk 0:07:24]} 18. Rfe1 {[%clk 0:05:47]}  Rab8 {[%clk 0:07:24]} 19. Nxd4 {[%clk 0:05:47]}  Bxe5 {[%clk 0:07:24]} 20. Nb3 {[%clk 0:04:29]}  Bxb2 {[%clk 0:06:54]} 21. Rab1 {[%clk 0:04:29]}  Bg7 {[%clk 0:06:54]} 22. Na5 {[%clk 0:04:29]}  Bc3 {[%clk 0:06:18]} 23. Rxb8 {[%clk 0:02:32]}  Rxb8 {[%clk 0:06:18]} 0-1


[Site "http://www.Chess.com"]

[Event "FIDE World Rapid Chess Championship 2021"]
[White "Blanco Acevedo, Cristobal Jose"]
[Black "Toczek, Grzegorz"]
[WhiteFideId "3900525"]
[BlackFideId "1106457"]
[WhiteElo "2289"]
[BlackElo "2220"]
[Result "1/2-1/2"]
[Round "11"]
[TimeControl "900+10"]
[Date "2021.12.28"]
[WhiteClock "0:01:54"]
[BlackClock "0:03:47"]

1. e4 {[%clk 0:15:00]}  c5 {[%clk 0:15:00]} 2. Nf3 {[%clk 0:15:00]}  d6 {[%clk 0:15:00]} 3. d4 {[%clk 0:15:00]}  cxd4 {[%clk 0:15:00]} 4. Nxd4 {[%clk 0:15:00]}  Nf6 {[%clk 0:15:00]} 5. Nc3 {[%clk 0:15:00]}  Nc6 {[%clk 0:15:00]} 6. Be2 {[%clk 0:15:00]}  e5 {[%clk 0:15:07]} 7. Nb3 {[%clk 0:16:08]}  h6 {[%clk 0:15:07]} 8. O-O {[%clk 0:16:08]}  Be7 {[%clk 0:15:07]} 9. Kh1 {[%clk 0:16:08]}  O-O {[%clk 0:15:07]} 10. f4 {[%clk 0:16:08]}  a6 {[%clk 0:12:35]} 11. a4 {[%clk 0:16:17]}  Be6 {[%clk 0:12:35]} 12. f5 {[%clk 0:16:17]}  Bxb3 {[%clk 0:12:35]} 13. cxb3 {[%clk 0:16:17]}  Nd4 {[%clk 0:12:35]} 14. Bc4 {[%clk 0:15:08]}  b5 {[%clk 0:11:45]} 15. axb5 {[%clk 0:15:08]}  axb5 {[%clk 0:11:45]} 16. Rxa8 {[%clk 0:15:08]}  Qxa8 {[%clk 0:11:45]} 17. Bd5 {[%clk 0:15:08]}  Qa5 {[%clk 0:11:45]} 18. Be3 {[%clk 0:13:45]}  b4 {[%clk 0:11:38]} 19. Bxd4 {[%clk 0:12:14]}  exd4 {[%clk 0:11:37]} 20. Ne2 {[%clk 0:12:14]}  Nxd5 {[%clk 0:11:37]} 21. exd5 {[%clk 0:12:14]}  Qxd5 {[%clk 0:11:37]} 22. Nxd4 {[%clk 0:12:14]}  Rc8 {[%clk 0:11:54]} 23. f6 {[%clk 0:09:16]}  Bxf6 {[%clk 0:10:02]} 24. Qg4 {[%clk 0:09:16]}  Rc5 {[%clk 0:09:45]} 25. Nf5 {[%clk 0:06:02]}  Qd2 {[%clk 0:09:45]} 26. h3 {[%clk 0:06:10]}  Rc1 {[%clk 0:06:02]} 27. Qf3 {[%clk 0:06:10]}  Rxf1+ {[%clk 0:06:02]} 28. Qxf1 {[%clk 0:06:10]}  Bg5 {[%clk 0:06:02]} 29. h4 {[%clk 0:03:36]}  Bf4 {[%clk 0:04:45]} 30. g3 {[%clk 0:02:40]}  Qd5+ {[%clk 0:03:14]} 31. Kh2 {[%clk 0:02:40]}  Qxf5 {[%clk 0:03:14]} 32. gxf4 {[%clk 0:02:40]}  Qc2+ {[%clk 0:03:14]} 33. Kh1 {[%clk 0:02:40]}  Qxb3 {[%clk 0:03:14]} 34. Qe2 {[%clk 0:02:40]}  Qe6 {[%clk 0:03:14]} 35. Qf2 {[%clk 0:02:40]}  Qe4+ {[%clk 0:03:14]} 36. Kg1 {[%clk 0:02:40]}  b3 {[%clk 0:03:14]} 37. Qd2 {[%clk 0:02:40]}  d5 {[%clk 0:03:14]} 38. Qc3 {[%clk 0:02:40]}  Qb1+ {[%clk 0:03:14]} 39. Kf2 {[%clk 0:02:40]}  Qc2+ {[%clk 0:03:14]} 40. Ke3 {[%clk 0:01:54]}  Qxc3+ {[%clk 0:03:47]} 41. bxc3 {[%clk 0:01:54]}  b2 {[%clk 0:03:47]} 42. Kd4 {[%clk 0:01:54]} 1/2-1/2


[Site "http://www.Chess.com"]

[Event "FIDE World Rapid Chess Championship 2021"]
[White "Yunusov, Mukhammad"]
[Black "Lubczynski, Rafal"]
[WhiteFideId "14700930"]
[BlackFideId "1126091"]
[WhiteElo "1832"]
[BlackElo "2289"]
[Result "0-1"]
[Round "11"]
[TimeControl "900+10"]
[Date "2021.12.28"]
[WhiteClock "0:01:07"]
[BlackClock "0:00:46"]

1. d4 {[%clk 0:15:00]}  Nf6 {[%clk 0:15:00]} 2. Bf4 {[%clk 0:15:00]}  b5 {[%clk 0:15:00]} 3. e3 {[%clk 0:15:00]}  Bb7 {[%clk 0:15:00]} 4. Nf3 {[%clk 0:15:00]}  a6 {[%clk 0:15:00]} 5. a4 {[%clk 0:15:00]}  b4 {[%clk 0:15:00]} 6. Bd3 {[%clk 0:14:49]}  e6 {[%clk 0:15:46]} 7. O-O {[%clk 0:14:49]}  c5 {[%clk 0:15:46]} 8. c3 {[%clk 0:14:49]}  Nc6 {[%clk 0:15:46]} 9. Nbd2 {[%clk 0:14:49]}  bxc3 {[%clk 0:14:44]} 10. bxc3 {[%clk 0:13:46]}  cxd4 {[%clk 0:14:44]} 11. cxd4 {[%clk 0:13:48]}  Nb4 {[%clk 0:12:19]} 12. Nc4 {[%clk 0:13:19]}  Nxd3 {[%clk 0:12:27]} 13. Qxd3 {[%clk 0:09:12]}  Be4 {[%clk 0:12:27]} 14. Qb3 {[%clk 0:09:19]}  Bd5 {[%clk 0:09:14]} 15. Qd3 {[%clk 0:09:19]}  Be4 {[%clk 0:09:03]} 16. Qb3 {[%clk 0:04:05]}  d6 {[%clk 0:09:03]} 17. Qb6 {[%clk 0:03:47]}  Qxb6 {[%clk 0:04:30]} 18. Nxb6 {[%clk 0:00:36]}  Rb8 {[%clk 0:04:30]} 19. a5 {[%clk 0:00:36]}  Be7 {[%clk 0:01:51]} 20. Rfc1 {[%clk 0:00:44]}  Nh5 {[%clk 0:01:51]} 21. Nc8 {[%clk 0:00:44]}  Nxf4 {[%clk 0:01:51]} 22. exf4 {[%clk 0:00:44]}  Bf8 {[%clk 0:01:51]} 23. Ng5 {[%clk 0:00:44]}  Bb7 {[%clk 0:01:51]} 24. Nb6 {[%clk 0:00:44]}  h6 {[%clk 0:01:51]} 25. Nf3 {[%clk 0:00:44]}  Be7 {[%clk 0:01:51]} 26. d5 {[%clk 0:00:44]}  Bd8 {[%clk 0:00:39]} 27. dxe6 {[%clk 0:00:31]}  fxe6 {[%clk 0:00:39]} 28. Nd4 {[%clk 0:00:31]}  Kf7 {[%clk 0:00:39]} 29. Ra2 {[%clk 0:00:31]}  Be4 {[%clk 0:00:39]} 30. Nc6 {[%clk 0:00:31]}  Bxc6 {[%clk 0:00:39]} 31. Rxc6 {[%clk 0:00:31]}  Be7 {[%clk 0:00:39]} 32. Rc7 {[%clk 0:00:31]}  Rhd8 {[%clk 0:00:39]} 33. Ra7 {[%clk 0:00:31]}  d5 {[%clk 0:00:39]} 34. Rc2 {[%clk 0:00:31]}  Ke8 {[%clk 0:00:39]} 35. Rxa6 {[%clk 0:01:07]}  d4 {[%clk 0:00:46]} 36. Kf1 {[%clk 0:01:07]}  d3 {[%clk 0:00:46]} 37. Rd2 {[%clk 0:01:07]}  Bb4 {[%clk 0:00:46]} 38. Rd1 {[%clk 0:01:07]}  Rd4 {[%clk 0:00:46]} 39. Na4 {[%clk 0:01:07]}  Kf7 {[%clk 0:00:46]} 40. Ra7+ {[%clk 0:01:07]}  Kf6 {[%clk 0:00:46]} 41. Nb6 {[%clk 0:01:07]}  Rbd8 {[%clk 0:00:46]} 42. a6 {[%clk 0:01:07]}  Re4 {[%clk 0:00:46]} 43. Rb7 {[%clk 0:01:07]}  d2 {[%clk 0:00:46]} 44. Nd7+ {[%clk 0:01:07]}  Rxd7 {[%clk 0:00:46]} 45. Rxb4 {[%clk 0:01:07]}  Rxb4 {[%clk 0:00:46]} 0-1


[Site "http://www.Chess.com"]